bitfinex/quotes_SOLUSD_20250326
["timestamp","ask_amount","ask_price","bid_price","bid_amount"]
[1743019279132,40.13167751,137.82,137.77,38.50587751]
[1743019279826,1.6258,137.82,137.76,7.2589]
[1743019280165,6.54,137.83,137.79,38.50587751]
[1743019280329,52.30117751,137.83,137.78,38.50587751]
[1743019280730,45.04587751,137.83,137.78,45.76347751]
[1743019281648,6.54,137.83,137.78,7.2576]
[1743019281851,45.04587751,137.83,137.78,45.76347751]
[1743019282231,52.30127751,137.83,137.78,38.50587751]
[1743019282729,45.04587751,137.83,137.78,45.76337751]
[1743019282951,6.54,137.83,137.79,38.50587751]
[1743019283148,45.04587751,137.83,137.78,45.76337751]
[1743019283654,38.50587751,137.83,137.78,45.76337751]
[1743019283857,38.56887751,137.84,137.78,45.76337751]
[1743019284148,0.063,137.84,137.8,38.50587751]
[1743019284352,0.063,137.84,137.83,58.50587751]
[1743019284851,0.063,137.84,137.83,65.76117751]
[1743019285245,0.063,137.84,137.83,167.01072637]
[1743019285757,0.063,137.84,137.83,205.51660388]
[1743019285943,0.063,137.89,137.84,0.28432314]
[1743019286134,0.063,137.89,137.88,38.50587751]
[1743019286338,0.063,137.89,137.87,38.50587751]
[1743019286938,0.063,137.89,137.86,45.75947751]
[1743019287150,0.063,137.89,137.87,38.50587751]
[1743019287830,0.063,137.89,137.85,38.50587751]
[1743019288160,38.50587751,137.87,137.84,82.5999]
[1743019288337,38.50587751,137.88,137.84,82.5999]
[1743019288737,38.56887751,137.89,137.84,121.10577751]
[1743019289065,38.50587751,137.88,137.84,82.5999]
[1743019289231,38.56887751,137.89,137.84,121.10577751]
[1743019289431,0.063,137.89,137.85,38.50587751]
[1743019289632,0.063,137.89,137.86,38.50587751]
[1743019289852,0.063,137.89,137.85,38.50587751]
[1743019290758,38.50587751,137.88,137.84,82.5999]
[1743019291158,38.50587751,137.87,137.84,82.5999]
[1743019292060,38.50587751,137.86,137.84,82.5999]
[1743019292254,38.50587751,137.87,137.82,121.10577751]
[1743019292757,38.50587751,137.87,137.83,38.50587751]
[1743019292962,0.063,137.89,137.85,38.50587751]
[1743019293136,0.063,137.89,137.86,0.28432314]
[1743019293338,0.063,137.89,137.88,38.50587751]
[1743019293539,0.063,137.89,137.88,121.10577751]
[1743019294255,0.063,137.89,137.88,128.35837751]
[1743019295865,0.063,137.95,137.9,0.28432314]
[1743019296160,0.063,137.95,137.92,38.50587751]
[1743019296351,7.3121,137.95,137.91,38.50587751]
[1743019296544,38.50587751,137.92,137.9,82.5999]
[1743019296748,38.50587751,137.92,137.87,128.35877751]
[1743019299260,38.50587751,137.93,137.88,38.50587751]
[1743019299654,45.75587751,137.93,137.88,38.50587751]
[1743019299861,38.50587751,137.91,137.87,82.5999]
[1743019301074,38.50587751,137.9,137.87,82.5999]
[1743019301248,38.50587751,137.88,137.85,82.5999]
[1743019301852,6.54,137.91,137.84,0.03]
[1743019301853,38.50587751,137.86,137.84,0.03]
[1743019302254,45.75747751,137.9,137.84,0.03]
[1743019302255,38.50587751,137.88,137.84,0.03]
[1743019302452,38.50587751,137.86,137.84,0.03]
[1743019302653,38.50587751,137.85,137.84,0.03]
[1743019303781,45.76007751,137.85,137.84,0.03]
[1743019304164,8.1295,137.86,137.84,0.03]
[1743019304361,45.04587751,137.86,137.84,0.03]
[1743019304755,6.54,137.86,137.84,0.03]
[1743019305484,38.50587751,137.88,137.84,0.03]
[1743019306388,38.50587751,137.85,137.84,0.03]
[1743019306891,7.2521,137.89,137.84,38.53587751]
[1743019306892,38.50587751,137.89,137.84,38.53587751]
[1743019307059,45.04587751,137.9,137.86,38.50587751]
[1743019307250,45.04587751,137.9,137.85,38.50587751]
[1743019308752,8.25072314,137.93,137.87,38.50587751]
[1743019308753,38.50587751,137.91,137.87,38.50587751]
[1743019309572,38.50587751,137.93,137.88,38.50587751]
[1743019309776,38.50587751,137.93,137.85,82.5999]
[1743019309777,38.50587751,137.94,137.89,38.50587751]
[1743019309991,38.50587751,137.94,137.89,45.75787751]
[1743019310999,38.50587751,137.94,137.9,38.50587751]
[1743019311361,38.56887751,137.95,137.9,38.50587751]
[1743019311560,0.063,137.95,137.91,38.50587751]
[1743019311875,38.56887751,137.95,137.92,7.2505]
[1743019312291,0.063,137.95,137.92,128.35627751]
[1743019312596,0.063,137.95,137.93,38.50587751]
[1743019312959,0.063,137.95,137.94,38.50587751]
[1743019313175,0.063,137.95,137.94,121.10577751]
[1743019313384,0.063,137.95,137.94,139.75542637]
[1743019313695,0.063,137.95,137.94,121.10577751]
[1743019314198,0.063,137.95,137.94,128.35527751]
[1743019314564,0.063,137.95,137.94,147.28924951]
[1743019315179,0.063,137.95,137.94,82.5999]
[1743019315473,0.063,137.95,137.94,147.00492637]
[1743019316385,0.063,137.95,137.94,147.28924951]
[1743019318275,6.52,138.05,137.97,0.28432314]
[1743019318276,38.50587751,138.05,137.97,0.28432314]
[1743019318561,1.6519,138.07,137.98,57.15552637]
[1743019318562,38.50587751,138.03,137.98,57.15552637]
[1743019318772,38.50587751,138.03,137.98,139.75532637]
[1743019319679,38.50587751,138.01,137.98,82.5998]
[1743019319866,38.50587751,138.02,137.98,82.5998]
[1743019320062,7.2437,138.05,138.0,38.50587751]
[1743019320273,45.74957751,138.05,138.0,38.50587751]
[1743019320674,45.74957751,138.05,137.98,121.10567751]
[1743019320675,38.50587751,138.03,137.98,121.10567751]
[1743019320874,38.50587751,138.03,137.98,82.5998]
[1743019321074,38.50587751,138.03,137.98,121.10567751]
[1743019321786,38.50587751,138.03,137.98,128.35297751]
[1743019321981,38.50587751,138.03,137.99,38.50587751]
[1743019322286,7.2444,138.04,137.99,38.50587751]
[1743019322484,38.50587751,138.02,137.98,82.5998]
[1743019322690,38.50587751,138.01,137.98,82.5998]
[1743019323788,38.50587751,138.0,137.98,82.5998]
[1743019324989,38.50587751,137.99,137.91,82.5998]
[1743019325166,38.50587751,137.98,137.93,38.50587751]
[1743019325583,25.3606,138.01,137.93,38.50587751]
[1743019325785,25.3606,138.01,137.93,45.75557751]
[1743019325786,38.50587751,137.98,137.93,45.75557751]
[1743019326091,38.50587751,138.0,137.95,38.50587751]
[1743019326390,37.50587751,138.01,137.96,38.50587751]
[1743019326601,38.50587751,138.01,137.96,38.50587751]
[1743019326796,38.50587751,138.0,137.95,121.10567751]
[1743019327492,38.50587751,138.01,137.97,38.50587751]
[1743019328006,38.50587751,138.01,137.96,45.75427751]
[1743019329217,38.50587751,138.0,137.95,121.10567751]
[1743019329508,7.2463,138.01,137.95,121.10567751]
[1743019329509,38.50587751,137.99,137.95,82.5998]
[1743019329682,38.50587751,138.0,137.95,128.35447751]
[1743019330777,45.75217751,138.0,137.95,128.35447751]
[1743019331305,45.75167751,138.01,137.96,38.50587751]
[1743019331487,38.50587751,138.0,137.95,128.35447751]
[1743019331688,38.50587751,138.0,137.95,121.10567751]
[1743019331998,38.50587751,137.99,137.95,121.10567751]
[1743019332380,7.2465,138.0,137.95,82.5998]
[1743019332786,38.50587751,137.99,137.95,82.5998]
[1743019333082,23.94883103,138.0,137.95,113.79743103]
[1743019333515,23.94883103,137.99,137.95,113.79743103]
[1743019333800,23.94883103,137.99,137.95,82.5998]
[1743019334000,23.94883103,137.98,137.95,82.5998]
[1743019334203,23.94883103,137.99,137.95,82.5998]
[1743019334500,23.94883103,138.01,137.96,23.94883103]
[1743019335482,23.94883103,137.99,137.95,82.5998]
[1743019335681,23.94883103,138.01,137.96,23.94883103]
[1743019336808,8.1497,138.04,137.97,23.94883103]
[1743019337103,23.94883103,138.02,137.97,23.94883103]
[1743019337303,23.94883103,138.03,137.98,23.94883103]
[1743019337500,25.57853103,138.04,137.99,31.19523103]
[1743019338219,23.94883103,138.03,137.97,96.1581]
[1743019338505,23.94883103,138.03,137.95,43.29214886]
[1743019338506,23.94883103,137.98,137.95,89.1198]
[1743019338808,23.94883103,138.0,137.95,113.79743103]
[1743019339101,23.94883103,138.0,137.96,23.94883103]
[1743019340011,23.94883103,138.0,137.97,7.2479]
[1743019340304,43.94883103,138.01,137.97,7.2479]
[1743019340508,23.94883103,138.01,137.97,7.2479]
[1743019341106,0.063,138.04,138.0,23.94883103]
[1743019341311,0.063,138.04,138.01,23.94883103]
[1743019342089,0.063,138.04,138.02,7.2453]
[1743019342319,0.063,138.04,138.03,23.94883103]
[1743019342905,0.063,138.04,138.02,45.51677448]
[1743019343205,0.063,138.04,138.03,38.27147448]
[1743019343407,0.063,138.04,138.03,38.55579762]
[1743019343707,0.063,138.04,138.03,57.20544648]
[1743019344309,0.063,138.09,138.06,18.933972]
[1743019344500,0.063,138.09,138.08,38.27147448]
[1743019345086,0.063,138.09,138.07,38.27147448]
[1743019345292,0.063,138.09,138.06,89.1197]
[1743019346019,0.063,138.09,138.06,82.5997]
[1743019346310,38.27147448,138.08,138.06,82.5997]
[1743019346903,38.27147448,138.08,138.03,38.27147448]
[1743019347107,38.33447448,138.09,138.04,38.27147448]
[1743019347410,38.33447448,138.09,138.05,38.27147448]
[1743019348793,0.063,138.09,138.05,120.87117448]
[1743019348993,0.063,138.09,138.06,38.27147448]
[1743019349195,0.063,138.09,138.07,38.27147448]
[1743019349517,0.063,138.09,138.08,56.92112334]
[1743019350616,0.063,138.09,138.08,64.16322334]
[1743019350916,0.063,138.09,138.08,38.27147448]
[1743019351292,0.063,138.09,138.07,82.5997]
[1743019352719,38.33447448,138.09,138.07,82.5997]
[1743019353502,0.063,138.09,138.07,82.5997]
[1743019354313,38.33447448,138.09,138.07,82.5997]
[1743019354519,38.27147448,138.08,138.07,82.5997]
[1743019354714,38.33447448,138.09,138.07,82.5997]
[1743019354907,0.063,138.09,138.08,56.92112334]
[1743019355110,0.063,138.09,138.08,38.27147448]
[1743019355312,0.063,138.09,138.07,120.87117448]
[1743019355716,0.063,138.09,138.08,38.27147448]
[1743019357723,0.063,138.09,138.07,120.87117448]
[1743019358609,0.063,138.09,138.08,38.27147448]
[1743019359421,0.063,138.09,138.08,56.92112334]
[1743019359719,0.063,138.09,138.08,38.27147448]
[1743019359927,0.063,138.09,138.08,120.87117448]
[1743019362828,0.063,138.09,138.08,128.11327448]
[1743019363017,0.063,138.09,138.08,113.74022115]
[1743019364031,0.063,138.09,138.08,82.5997]
[1743019367132,0.063,138.09,138.08,106.49812115]
[1743019367322,0.063,138.09,138.08,82.5997]
[1743019369026,23.96142115,138.09,138.06,82.5997]
[1743019369939,0.063,138.09,138.06,82.5997]
[1743019370842,0.063,138.09,138.08,23.89842115]
[1743019371828,0.063,138.09,138.08,27.2421]
[1743019375943,0.063,138.18,138.17,23.89842115]
[1743019376313,0.063,138.18,138.16,23.89842115]
[1743019376541,0.063,138.18,138.15,31.13682115]
[1743019376919,0.063,138.18,138.17,43.89842115]
[1743019377239,0.063,138.18,138.17,121.24934886]
[1743019378228,0.03,138.19,138.18,18.64964886]
[1743019378430,0.03,138.19,138.18,108.48624886]
[1743019379716,0.03,138.19,138.18,89.8366]
[1743019380843,0.03,138.19,138.18,113.73502115]
[1743019382345,0.03,138.19,138.18,89.8366]
[1743019384743,0.03,138.19,138.18,113.73502115]
[1743019386628,0.03,138.19,138.17,27.2372]
[1743019387044,0.03,138.19,138.17,51.13562115]
[1743019387446,0.03,138.19,138.18,23.89842115]
[1743019388440,0.03,138.19,138.18,31.13532115]
[1743019388638,0.03,138.19,138.18,7.2369]
[1743019390141,0.03,138.19,138.17,20.0]
[1743019390538,23.92842115,138.19,138.14,113.73692115]
[1743019390842,23.89842115,138.17,138.12,113.73802115]
[1743019391047,23.89842115,138.16,138.12,113.73802115]
[1743019391354,23.89842115,138.17,138.12,113.73802115]
[1743019392143,23.89842115,138.16,138.12,89.8396]
[1743019392327,23.89842115,138.15,138.1,106.49812115]
[1743019392532,23.89842115,138.13,138.1,82.5997]
[1743019392735,23.89842115,138.13,138.09,7.2414]
[1743019392941,23.89842115,138.14,138.09,31.13982115]
[1743019393579,13.3789,138.17,138.09,31.13982115]
[1743019393737,23.89842115,138.14,138.09,31.13982115]
[1743019394132,23.89842115,138.14,138.1,23.89842115]
[1743019394950,6.1414,138.17,138.11,23.89842115]
[1743019395133,83.5851,138.18,138.13,23.89842115]
[1743019395134,25.48352115,138.18,138.13,23.89842115]
[1743019395334,1.5851,138.18,138.12,23.89842115]
[1743019395535,23.89842115,138.17,138.12,23.89842115]
[1743019395764,23.89842115,138.16,138.11,106.49812115]
[1743019396059,23.89842115,138.16,138.11,89.8398]
[1743019396238,23.89842115,138.15,138.11,113.73822115]
[1743019396753,23.89842115,138.14,138.11,82.5997]
[1743019397057,23.89842115,138.14,138.1,31.13932115]
[1743019397440,23.89842115,138.13,138.08,106.49812115]
[1743019397647,7.2375,138.17,138.08,82.5997]
[1743019398032,7.2375,138.17,138.08,89.8416]
[1743019398249,7.2375,138.17,138.08,111.53045666]
[1743019399656,8.822,138.18,138.11,27.2402]
[1743019399858,8.822,138.18,138.11,109.8399]
[1743019400049,1.5851,138.18,138.11,109.8399]
[1743019400246,1.5851,138.18,138.12,0.28432314]
[1743019400446,0.03,138.19,138.15,20.0]
[1743019400634,1.5021,138.22,138.19,20.0]
[1743019400836,0.03,138.23,138.19,20.0]
[1743019401655,0.03,138.23,138.16,18.64964886]
[1743019401855,0.03,138.23,138.17,7.2374]
[1743019402268,0.03,138.23,138.18,18.64964886]
[1743019402843,0.03,138.23,138.21,20.0]
[1743019403366,0.03,138.23,138.18,101.24934886]
[1743019403746,0.03,138.23,138.19,7.2364]
[1743019404444,0.03,138.23,138.18,89.8365]
[1743019404669,0.03,138.23,138.18,82.5997]
[1743019405446,0.03,138.23,138.18,89.8366]
[1743019406544,0.03,138.23,138.18,113.9423]
[1743019407162,0.03,138.23,138.19,18.64964886]
[1743019407354,0.03,138.23,138.22,20.0]
[1743019407553,0.03,138.23,138.19,101.24934886]
[1743019408158,0.03,138.23,138.22,20.0]
[1743019409769,0.03,138.23,138.19,108.48554886]
[1743019411273,0.03,138.23,138.18,82.5997]
[1743019411459,1.5895,138.22,138.18,82.5997]
[1743019411661,1.5895,138.22,138.15,82.5997]
[1743019411975,8.1899,138.22,138.15,82.5997]
[1743019412959,7.2353,138.21,138.15,82.5997]
[1743019413658,25.3237,138.21,138.15,82.5997]
[1743019413859,18.933972,138.2,138.11,82.5997]
[1743019414065,6.5,138.19,138.11,82.5997]
[1743019414279,6.5,138.19,138.14,20.0]
[1743019414954,13.7366,138.19,138.14,20.0]
[1743019415178,6.5,138.19,138.14,27.2388]
[1743019415554,13.7364,138.19,138.14,27.2388]
[1743019416093,13.7364,138.19,138.15,0.063]
[1743019416863,31.8274,138.19,138.15,0.063]
[1743019420182,7.236,138.2,138.15,20.063]
[1743019420682,25.3257,138.2,138.15,0.063]
[1743019424670,7.236,138.2,138.15,0.063]
[1743019427288,25.3257,138.2,138.15,0.063]
[1743019430684,100.933972,138.19,138.15,0.063]
[1743019430890,6.5,138.18,138.15,0.063]
[1743019432467,13.7372,138.18,138.15,0.063]
[1743019434918,6.5,138.18,138.15,0.063]
[1743019435216,7.2353,138.21,138.15,0.063]
[1743019435391,13.7353,138.21,138.15,0.063]
[1743019436814,90.8543,138.22,138.15,0.063]
[1743019437018,7.2648,138.22,138.15,82.6627]
[1743019437988,0.03,138.22,138.16,7.2379]
[1743019438694,0.03,138.22,138.16,89.8376]
[1743019439310,0.03,138.22,138.16,82.5997]
[1743019439491,20.0,138.2,138.15,0.063]
[1743019439694,26.997372,138.19,138.15,0.063]
[1743019440824,26.85521043,138.19,138.15,0.063]
[1743019441410,7.2369,138.18,138.15,0.063]
[1743019444095,25.3292,138.18,138.15,0.063]
[1743019444906,18.933972,138.17,138.15,0.063]
[1743019445406,7.2379,138.16,138.15,0.063]
[1743019446327,7.2375,138.17,138.15,0.063]
[1743019450427,25.88714886,138.17,138.15,0.063]
[1743019450825,20.0,138.13,138.1,0.063]
[1743019451016,6.5,138.12,138.1,0.063]
[1743019452127,13.7404,138.12,138.1,0.063]
[1743019452821,6.5,138.12,138.1,0.063]
[1743019453237,13.7401,138.12,138.1,0.063]
[1743019455428,82.0,138.14,138.1,0.063]
[1743019456333,89.239,138.14,138.1,0.063]
[1743019457030,84.239,138.14,138.1,0.063]
[1743019460638,18.933972,138.13,138.1,0.063]
[1743019460822,18.79181043,138.13,138.1,0.063]
[1743019462956,7.24,138.12,138.1,0.063]
[1743019465232,7.24,138.12,138.07,19.563]
[1743019467360,7.24,138.12,138.07,26.8056]
[1743019468356,7.2395,138.13,138.07,26.8056]
[1743019470136,7.2395,138.13,138.07,19.563]
[1743019470561,25.3383,138.13,138.04,82.5997]
[1743019470738,25.3383,138.13,138.04,89.8438]
[1743019471054,95.933972,138.12,138.03,1.6879]
[1743019471224,78.6316,138.11,138.03,0.063]
[1743019471552,20.0,138.07,138.03,0.063]
[1743019471733,6.5,138.06,138.03,0.063]
[1743019471927,7.2437,138.05,138.03,0.063]
[1743019472939,6.5,138.06,138.03,0.063]
[1743019475250,13.7432,138.06,138.03,0.063]
[1743019475757,18.79181043,138.05,138.03,0.063]
[1743019477149,6.5,138.04,138.03,0.063]
[1743019480134,13.7442,138.04,138.03,0.063]
[1743019480534,6.5,138.04,138.03,0.063]
[1743019481055,13.7442,138.04,138.03,0.063]
[1743019481231,13.88636157,138.04,138.03,0.063]
[1743019482056,13.7442,138.04,138.03,0.063]
[1743019483248,6.5,138.04,138.03,0.063]
[1743019483946,13.7442,138.04,138.03,0.063]
[1743019487960,7.2442,138.04,138.03,0.063]
[1743019490859,0.03,138.07,138.03,20.063]
[1743019491041,0.03,138.07,138.03,21.5935]
[1743019491540,0.03,138.07,138.04,20.0]
[1743019491739,0.03,138.07,138.05,7.2437]
[1743019491939,0.03,138.07,138.04,27.244]
[1743019492967,0.03,138.07,138.04,20.0]
[1743019494062,0.03,138.07,138.04,27.244]
[1743019494562,0.03,138.07,138.04,20.0]
[1743019494964,0.03,138.07,138.04,27.2441]
[1743019495941,0.03,138.07,138.04,20.0]
[1743019497059,0.03,138.07,138.03,0.063]
[1743019499161,0.03,138.07,138.04,20.0]
[1743019499947,0.03,138.07,138.06,20.0]
[1743019501148,0.03,138.07,138.04,82.5997]
[1743019501555,0.03,138.07,138.05,20.0]
[1743019502068,0.03,138.07,138.03,0.063]
[1743019502749,0.03,138.07,138.03,7.3076]
[1743019503566,0.03,138.07,138.05,20.0]
[1743019506153,0.03,138.07,138.05,19.7]
[1743019507966,0.03,138.07,138.03,0.063]
[1743019508571,0.03,138.07,138.04,20.0]
[1743019509974,0.03,138.07,138.03,0.063]
[1743019510875,0.28432314,138.05,138.03,0.063]
[1743019511059,77.0,138.04,138.03,0.0001]
[1743019511972,92.3068,138.04,138.03,0.0001]
[1743019512972,34.240772,138.04,138.03,0.0001]
[1743019514762,52.351372,138.04,138.01,0.0001]
[1743019514975,18.933972,138.02,138.01,0.0001]
[1743019515881,26.179272,138.02,138.01,0.0001]
[1743019517380,7.2453,138.02,138.01,0.0001]
[1743019518383,26.179272,138.02,138.01,0.0001]
[1743019520389,1.5946,138.0,137.97,0.063]
[1743019520562,82.0,137.99,137.97,0.063]
[1743019520769,6.5,137.98,137.97,0.063]
[1743019522282,13.7474,137.98,137.97,0.063]
[1743019525771,13.7474,137.98,137.94,0.03]
[1743019526277,31.8659,137.98,137.94,0.03]
[1743019526868,18.933972,137.97,137.94,0.03]
[1743019528275,18.1185,137.98,137.94,0.03]
[1743019528494,11.3370902,138.01,137.97,20.0]
[1743019528736,11.3370902,138.01,137.97,26.1964]
[1743019529490,11.3370902,138.01,138.0,20.0]
[1743019530272,11.3370902,138.01,138.0,27.2463]
[1743019530475,11.3370902,138.01,138.0,128.779972]
[1743019530707,4.0376902,138.09,138.04,20.0]
[1743019530877,4.0376902,138.09,138.01,6.33856157]
[1743019530878,4.38906081,138.11,138.05,7.32432314]
[1743019531189,113.40090203,138.22,138.05,7.32432314]
[1743019531190,113.40090203,138.22,138.14,20.0]
[1743019531400,113.40090203,138.22,138.18,20.0]
[1743019532485,113.40090203,138.22,138.15,18.79181043]
[1743019532486,40.93458118,138.2,138.19,7.2364]
[1743019532694,40.93458118,138.2,138.19,20.0]
[1743019533074,40.93458118,138.2,138.19,38.79181043]
[1743019533291,40.93458118,138.2,138.19,38.933972]
[1743019533292,18.37299802,138.2,138.19,38.933972]
[1743019534104,0.03,138.21,138.2,18.79181043]
[1743019534485,0.03,138.21,138.2,20.14216157]
[1743019534679,0.03,138.21,138.2,20.0]
[1743019535087,0.03,138.21,138.2,34.75171866]
[1743019535997,0.14216157,138.26,138.2,14.75171866]
[1743019536198,18.933972,138.26,138.2,14.75171866]
[1743019536405,38.933972,138.26,138.2,14.75171866]
[1743019536613,6.64,138.25,138.2,14.75171866]
[1743019536786,6.64,138.25,138.24,11.06048314]
[1743019537311,24.7231,138.25,138.24,11.06048314]
[1743019537806,24.7231,138.25,138.21,11.06048314]
[1743019538012,82.0,138.24,138.21,11.06048314]
[1743019538707,7.2348,138.22,138.21,11.06048314]
[1743019539216,7.37696157,138.22,138.21,11.06048314]
[1743019539416,26.168772,138.22,138.21,8.314e-05]
[1743019539704,38.79181043,138.2,138.19,0.063]
[1743019540008,6.64,138.2,138.19,0.063]
[1743019540722,13.8758,138.2,138.19,0.063]
[1743019542799,7.2358,138.2,138.19,0.063]
[1743019544792,26.02761043,138.2,138.19,0.0001]
[1743019546008,26.169772,138.2,138.19,0.0001]
[1743019546909,26.169772,138.2,138.07,40.77061515]
[1743019546910,0.14216157,138.18,138.07,40.77061515]
[1743019547212,0.14216157,138.16,138.07,40.77061515]
[1743019547510,0.14216157,138.16,138.09,22.12096629]
[1743019547714,53.47008809,138.17,138.09,22.12096629]
[1743019547919,61.5227,138.16,138.09,22.12096629]
[1743019548293,61.5227,138.16,138.06,22.12096629]
[1743019549716,61.5316,138.14,138.06,22.12096629]
[1743019549926,108.40168809,138.14,138.06,22.12096629]
[1743019550308,108.40168809,138.14,138.08,20.0]
[1743019550501,108.40168809,138.14,138.05,18.71264886]
[1743019550706,46.87008809,138.13,138.05,0.063]
[1743019551102,6.6,138.12,138.05,0.063]
[1743019551816,25.3421,138.11,138.05,0.063]
[1743019552404,61.5451,138.11,138.05,0.063]
[1743019556238,108.41518809,138.11,138.05,0.063]
[1743019556897,46.87008809,138.1,138.05,0.063]
[1743019557599,25.3457,138.09,138.05,0.063]
[1743019557812,61.5539,138.09,138.01,18.64964886]
[1743019559121,61.5539,138.09,138.05,0.063]
[1743019560824,61.5539,138.09,138.01,18.64964886]
[1743019562305,61.5539,138.09,138.0,82.6]
[1743019564130,61.5539,138.09,138.01,18.79181043]
[1743019566134,25.3457,138.09,138.02,0.14216157]
[1743019566318,7.2416,138.09,138.04,20.0]
[1743019566923,7.2416,138.09,138.05,18.79181043]
[1743019567914,25.3414,138.12,138.05,18.79181043]
[1743019569029,25.3414,138.12,138.04,72.39917305]
[1743019569231,24.8447216,138.12,138.04,72.39917305]
[1743019570435,0.03,138.16,138.14,0.14216157]
[1743019570635,0.03,138.16,138.14,89.30216157]
[1743019571015,0.03,138.16,138.15,18.933972]
[1743019572027,0.03,138.16,138.15,101.67613357]
[1743019572336,67.1818881,138.17,138.16,27.84103357]
[1743019572541,7.2339,138.24,138.19,20.0]
[1743019572715,7.2339,138.24,138.2,6.56]
[1743019572915,7.2339,138.24,138.19,20.0]
[1743019574321,7.2327,138.26,138.19,20.0]
[1743019574722,25.3145,138.26,138.18,6.56]
[1743019574922,25.3145,138.26,138.19,18.933972]
[1743019575138,25.3145,138.26,138.21,20.0]
[1743019576039,25.3145,138.26,138.19,18.933972]
[1743019576344,25.3145,138.26,138.18,89.16]
[1743019577444,61.4782,138.26,138.18,89.16]
[1743019577644,61.4782,138.26,138.18,82.6]
[1743019577949,65.51973695,138.25,138.13,25.493972]
[1743019578133,46.87008809,138.24,138.16,20.0]
[1743019578442,25.32,138.23,138.16,20.0]
[1743019579933,25.32,138.23,138.17,18.933972]
[1743019580944,25.32,138.23,138.16,20.0]
[1743019581727,46.87008809,138.22,138.16,20.0]
[1743019581927,46.87008809,138.22,138.14,18.933972]
[1743019582851,25.3237,138.21,138.14,18.933972]
[1743019583847,25.3237,138.21,138.16,0.063]
[1743019584427,46.87008809,138.2,138.16,0.063]
[1743019584829,7.2364,138.19,138.16,0.063]
[1743019586930,7.2343,138.23,138.16,0.063]
[1743019587740,7.2332,138.25,138.18,18.933972]
[1743019587945,7.2332,138.25,138.19,0.28432314]
[1743019588950,25.3163,138.25,138.19,0.28432314]
[1743019589352,25.3163,138.25,138.17,18.64964886]
[1743019589659,25.3163,138.25,138.18,0.28432314]
[1743019590161,25.3163,138.25,138.17,18.64964886]
[1743019590452,61.4826,138.25,138.16,82.663]
[1743019591753,46.87008809,138.24,138.16,0.063]
[1743019592454,25.32,138.23,138.16,0.063]
[1743019594057,61.4915,138.23,138.16,0.063]
[1743019594263,46.87008809,138.22,138.16,0.063]
[1743019594437,68.0715,138.23,138.16,0.063]
[1743019594438,7.2358,138.2,138.16,0.063]
[1743019599458,18.0885,138.21,138.16,0.063]
[1743019600440,18.0885,138.21,138.16,20.063]
[1743019600645,18.0885,138.21,138.16,0.063]
[1743019603478,25.3238,138.21,138.16,0.063]
[1743019606148,7.2353,138.21,138.16,0.063]
[1743019607069,7.2353,138.21,138.16,0.34732314]
[1743019607661,7.2353,138.21,138.16,0.063]
[1743019607975,25.3237,138.21,138.16,0.063]
[1743019608977,61.5005,138.21,138.16,0.063]
[1743019609152,108.37058809,138.21,138.16,0.063]
[1743019610073,72.19378809,138.21,138.16,0.063]
[1743019610372,54.10538809,138.21,138.16,0.063]
[1743019611313,54.10538809,138.21,138.16,7.3009]
[1743019611467,54.10538809,138.21,138.16,18.71264886]
[1743019611666,54.10538809,138.21,138.16,0.063]
[1743019611972,72.19378809,138.21,138.16,0.063]
[1743019618474,54.10538809,138.21,138.16,0.063]
[1743019618679,46.87008809,138.21,138.16,0.063]
[1743019619559,46.87008809,138.21,138.16,7.3009]